[Event "Late-Titled-Tuesday-Blitz-December-26-2023"]
[Site "Chess.com"]
[Date "2023.12.26"]
[Round "11"]
[White "liczner"]
[Black "GP9isback23"]
[Result "1-0"]
[WhiteElo "2924"]
[BlackElo "2643"]
[TimeControl "180+1"]
[EndTime "16:03:20 PST"]
[Termination "liczner won by resignation"]

1. e4 {[%clk 0:02:36.6]} 1... c6 {[%clk 0:02:59.9]} 2. d4 {[%clk 0:02:32.3]}
2... d5 {[%clk 0:03:00.4]} 3. exd5 {[%clk 0:02:31.5]} 3... cxd5 {[%clk 0:03:00]}
4. Bd3 {[%clk 0:02:29.7]} 4... Nc6 {[%clk 0:02:56.3]} 5. c3 {[%clk 0:02:29.8]}
5... Qc7 {[%clk 0:02:53.9]} 6. Ne2 {[%clk 0:02:29.2]} 6... e6 {[%clk 0:02:48.1]}
7. O-O {[%clk 0:02:29.3]} 7... Bd6 {[%clk 0:02:48.4]} 8. h3 {[%clk 0:02:21.4]}
8... Bd7 {[%clk 0:02:45.3]} 9. Nd2 {[%clk 0:02:21.6]} 9... Nf6 {[%clk
0:02:38.1]} 10. Nf3 {[%clk 0:02:22]} 10... O-O {[%clk 0:02:34.2]} 11. Bg5 {[%clk
0:02:19.7]} 11... Ne4 {[%clk 0:02:27]} 12. Be3 {[%clk 0:02:08.4]} 12... f5
{[%clk 0:02:23.4]} 13. Ne1 {[%clk 0:01:38.2]} 13... Rae8 {[%clk 0:01:55.9]} 14.
f3 {[%clk 0:01:38.1]} 14... Nf6 {[%clk 0:01:46.4]} 15. Qd2 {[%clk 0:01:32.4]}
15... a6 {[%clk 0:01:25.7]} 16. f4 {[%clk 0:01:19.8]} 16... Ne4 {[%clk
0:01:24.5]} 17. Qc2 {[%clk 0:01:19.5]} 17... h6 {[%clk 0:01:19.4]} 18. Nf3
{[%clk 0:01:19.5]} 18... Qd8 {[%clk 0:01:15.1]} 19. Kh2 {[%clk 0:01:11.6]} 19...
g5 {[%clk 0:01:10.2]} 20. Ne5 {[%clk 0:01:10.6]} 20... Nxe5 {[%clk 0:01:07.6]}
21. dxe5 {[%clk 0:01:04.5]} 21... Bc7 {[%clk 0:01:01.3]} 22. c4 {[%clk
0:00:58.6]} 22... Bc6 {[%clk 0:01:00.6]} 23. Nd4 {[%clk 0:00:55.2]} 23... Qd7
{[%clk 0:00:46.4]} 24. Nxc6 {[%clk 0:00:52.6]} 24... bxc6 {[%clk 0:00:45.9]} 25.
Rac1 {[%clk 0:00:46.5]} 25... d4 {[%clk 0:00:37.2]} 26. Rcd1 {[%clk 0:00:24.1]}
26... c5 {[%clk 0:00:24.6]} 27. Bxe4 {[%clk 0:00:23.5]} 27... fxe4 {[%clk
0:00:25.1]} 28. Qxe4 {[%clk 0:00:24.1]} 28... Qg7 {[%clk 0:00:20]} 29. Bd2
{[%clk 0:00:16.1]} 29... gxf4 {[%clk 0:00:19.8]} 30. Rde1 {[%clk 0:00:16.6]}
30... Rf5 {[%clk 0:00:19]} 31. Bxf4 {[%clk 0:00:13.8]} 31... Ref8 {[%clk
0:00:18]} 32. Rf3 {[%clk 0:00:10.2]} 32... Kh7 {[%clk 0:00:14.9]} 33. g4 {[%clk
0:00:09.4]} 33... Qg6 {[%clk 0:00:10.6]} 34. gxf5 {[%clk 0:00:09.5]} 34... Rxf5
{[%clk 0:00:11.3]} 35. Rg1 {[%clk 0:00:08]} 35... Qf7 {[%clk 0:00:11.3]} 36. Bg3
{[%clk 0:00:07.3]} 36... Kh8 {[%clk 0:00:11.4]} 37. Rxf5 {[%clk 0:00:07.4]}
37... exf5 {[%clk 0:00:12.3]} 38. Qf4 {[%clk 0:00:06]} 38... Bd8 {[%clk
0:00:12.2]} 39. Qxh6+ {[%clk 0:00:05.7]} 1-0

[Event "Late-Titled-Tuesday-Blitz-December-26-2023"]
[Site "Chess.com"]
[Date "2023.12.26"]
[Round "11"]
[White "BeardedNM"]
[Black "Inepton_Fermion"]
[Result "0-1"]
[WhiteElo "2176"]
[BlackElo "2405"]
[TimeControl "180+1"]
[EndTime "16:03:22 PST"]
[Termination "Inepton_Fermion won on time"]

1. e4 {[%clk 0:03:00.9]} 1... g6 {[%clk 0:02:59.6]} 2. d4 {[%clk 0:02:58.5]}
2... Bg7 {[%clk 0:03:00]} 3. Nc3 {[%clk 0:02:58.6]} 3... d5 {[%clk 0:02:59.7]}
4. exd5 {[%clk 0:02:56.7]} 4... Nf6 {[%clk 0:02:59.9]} 5. Bb5+ {[%clk
0:02:52.9]} 5... Nbd7 {[%clk 0:02:59.9]} 6. Nf3 {[%clk 0:02:50.6]} 6... O-O
{[%clk 0:02:59.4]} 7. O-O {[%clk 0:02:50.1]} 7... a6 {[%clk 0:02:59.6]} 8. Ba4
{[%clk 0:02:38.6]} 8... b5 {[%clk 0:02:59.2]} 9. Bb3 {[%clk 0:02:38.8]} 9... Nb6
{[%clk 0:02:58.6]} 10. Re1 {[%clk 0:02:38.1]} 10... Bb7 {[%clk 0:02:57]} 11. Ne5
{[%clk 0:02:18.6]} 11... Nbxd5 {[%clk 0:02:51.4]} 12. a4 {[%clk 0:02:09.7]}
12... b4 {[%clk 0:02:39]} 13. Nxd5 {[%clk 0:02:07.9]} 13... Nxd5 {[%clk
0:02:37.7]} 14. a5 {[%clk 0:01:59]} 14... Rc8 {[%clk 0:02:11.1]} 15. Bd2 {[%clk
0:01:22.2]} 15... Qd6 {[%clk 0:01:45.9]} 16. Nc4 {[%clk 0:01:17.7]} 16... Qf6
{[%clk 0:01:42.8]} 17. Ne3 {[%clk 0:01:09.7]} 17... Qxd4 {[%clk 0:01:23.4]} 18.
Nxd5 {[%clk 0:00:58.3]} 18... Bxd5 {[%clk 0:01:22.8]} 19. Bxd5 {[%clk
0:00:44.5]} 19... Qxd5 {[%clk 0:01:21.6]} 20. Bxb4 {[%clk 0:00:45]} 20... Qxd1
{[%clk 0:01:21.3]} 21. Raxd1 {[%clk 0:00:45]} 21... Bxb2 {[%clk 0:00:50.6]} 22.
Rxe7 {[%clk 0:00:39.1]} 22... Bf6 {[%clk 0:00:45.4]} 23. Red7 {[%clk 0:00:15.7]}
23... Rfd8 {[%clk 0:00:40.6]} 24. Rxd8+ {[%clk 0:00:10]} 24... Rxd8 {[%clk
0:00:41.5]} 25. Rxd8+ {[%clk 0:00:09.4]} 25... Bxd8 {[%clk 0:00:42.4]} 26. Kf1
{[%clk 0:00:09.6]} 26... c5 {[%clk 0:00:37.2]} 27. Bxc5 {[%clk 0:00:09.5]} 27...
Bxa5 {[%clk 0:00:37]} 28. Ke2 {[%clk 0:00:09.9]} 28... f5 {[%clk 0:00:34.5]} 29.
Kd3 {[%clk 0:00:10]} 29... Kf7 {[%clk 0:00:35.1]} 30. Kc4 {[%clk 0:00:09.2]}
30... Ke6 {[%clk 0:00:34.6]} 31. Bd4 {[%clk 0:00:08.3]} 31... Kd6 {[%clk
0:00:32.7]} 32. f4 {[%clk 0:00:07.5]} 32... Kc6 {[%clk 0:00:27.4]} 33. Be5
{[%clk 0:00:07.7]} 33... Bb6 {[%clk 0:00:24.9]} 34. Kb4 {[%clk 0:00:06.4]} 34...
Kd5 {[%clk 0:00:24.2]} 35. c4+ {[%clk 0:00:04.9]} 35... Kc6 {[%clk 0:00:20.3]}
36. Bf6 {[%clk 0:00:03.1]} 36... Bc7 {[%clk 0:00:16.3]} 37. g3 {[%clk
0:00:01.7]} 37... Bb6 {[%clk 0:00:16.8]} 38. h3 {[%clk 0:00:01.3]} 38... Bf2
{[%clk 0:00:15.4]} 39. g4 {[%clk 0:00:01.2]} 39... fxg4 {[%clk 0:00:15.9]} 40.
hxg4 {[%clk 0:00:01.6]} 40... h5 {[%clk 0:00:15.7]} 41. gxh5 {[%clk 0:00:01.7]}
41... gxh5 {[%clk 0:00:15.9]} 0-1

[Event "Late-Titled-Tuesday-Blitz-December-26-2023"]
[Site "Chess.com"]
[Date "2023.12.26"]
[Round "11"]
[White "DishonorOnYourCow"]
[Black "ccccvhhhj"]
[Result "1-0"]
[WhiteElo "2565"]
[BlackElo "2493"]
[TimeControl "180+1"]
[EndTime "16:03:24 PST"]
[Termination "DishonorOnYourCow won by resignation"]

1. d4 {[%clk 0:03:00.9]} 1... e5 {[%clk 0:03:00.1]} 2. dxe5 {[%clk 0:03:00.4]}
2... d6 {[%clk 0:03:00.7]} 3. exd6 {[%clk 0:03:00.4]} 3... Bxd6 {[%clk
0:03:01.6]} 4. Nc3 {[%clk 0:03:00.4]} 4... Nc6 {[%clk 0:03:01.2]} 5. e4 {[%clk
0:03:00.3]} 5... Qe7 {[%clk 0:02:57.6]} 6. Nf3 {[%clk 0:02:59.3]} 6... Bg4
{[%clk 0:02:57.4]} 7. Be2 {[%clk 0:02:58.9]} 7... O-O-O {[%clk 0:02:57.9]} 8.
Nd5 {[%clk 0:02:51.2]} 8... Qxe4 {[%clk 0:02:53.8]} 9. O-O {[%clk 0:02:40.1]}
9... Bxh2+ {[%clk 0:02:47.7]} 10. Kxh2 {[%clk 0:02:38.8]} 10... Rxd5 {[%clk
0:02:42.4]} 11. Qe1 {[%clk 0:01:37.7]} 11... Nf6 {[%clk 0:02:23.4]} 12. Be3
{[%clk 0:01:27]} 12... Re8 {[%clk 0:02:11.2]} 13. Rd1 {[%clk 0:01:16.7]} 13...
Be6 {[%clk 0:02:01.1]} 14. Rxd5 {[%clk 0:01:11.2]} 14... Ng4+ {[%clk 0:01:48.5]}
15. Kg1 {[%clk 0:01:10.4]} 15... Nxe3 {[%clk 0:01:49.1]} 16. Rd3 {[%clk
0:00:40.1]} 16... Nxf1 {[%clk 0:01:45]} 17. Qxf1 {[%clk 0:00:41]} 17... Ne5
{[%clk 0:01:26.3]} 18. Re3 {[%clk 0:00:35.8]} 18... Nxf3+ {[%clk 0:01:23]} 19.
Bxf3 {[%clk 0:00:36.7]} 19... Qb4 {[%clk 0:01:04.3]} 20. b3 {[%clk 0:00:33.4]}
20... g5 {[%clk 0:00:59.7]} 21. Qe2 {[%clk 0:00:30.5]} 21... g4 {[%clk
0:00:55.8]} 22. Bd5 {[%clk 0:00:28.7]} 22... a6 {[%clk 0:00:23.1]} 23. Bxe6+
{[%clk 0:00:27.2]} 23... Rxe6 {[%clk 0:00:21.6]} 24. Rxe6 {[%clk 0:00:27.2]}
24... fxe6 {[%clk 0:00:22.5]} 25. Qxe6+ {[%clk 0:00:27.1]} 25... Kb8 {[%clk
0:00:23.2]} 26. Qg8+ {[%clk 0:00:24.7]} 26... Ka7 {[%clk 0:00:22.4]} 27. Qxh7
{[%clk 0:00:21.6]} 27... Qe1+ {[%clk 0:00:22.9]} 28. Kh2 {[%clk 0:00:21.5]}
28... Qxf2 {[%clk 0:00:22.6]} 29. Qe4 {[%clk 0:00:14.9]} 29... Qh4+ {[%clk
0:00:19.8]} 30. Kg1 {[%clk 0:00:14.8]} 30... Qh5 {[%clk 0:00:15.5]} 31. Qd4+
{[%clk 0:00:14.9]} 31... Kb8 {[%clk 0:00:13]} 32. Qd8+ {[%clk 0:00:15]} 32...
Ka7 {[%clk 0:00:13]} 33. Qxc7 {[%clk 0:00:15.4]} 33... Qh4 {[%clk 0:00:11.3]}
34. Qc5+ {[%clk 0:00:15.4]} 34... Ka8 {[%clk 0:00:11.6]} 35. Qf8+ {[%clk
0:00:15.1]} 35... Ka7 {[%clk 0:00:12.2]} 36. Qf2+ {[%clk 0:00:15.5]} 36... Qxf2+
{[%clk 0:00:11.7]} 37. Kxf2 {[%clk 0:00:16.4]} 37... Kb6 {[%clk 0:00:09.2]} 38.
Kg3 {[%clk 0:00:17]} 38... Kc5 {[%clk 0:00:10.1]} 39. Kxg4 {[%clk 0:00:17.7]}
39... Kd4 {[%clk 0:00:10.5]} 40. Kf5 {[%clk 0:00:18.2]} 40... Kc3 {[%clk
0:00:11.4]} 41. g4 {[%clk 0:00:18.6]} 41... Kxc2 {[%clk 0:00:12.3]} 42. g5
{[%clk 0:00:19.4]} 42... Kb2 {[%clk 0:00:13.2]} 43. g6 {[%clk 0:00:20]} 43...
Kxa2 {[%clk 0:00:14.1]} 44. g7 {[%clk 0:00:20.7]} 44... Kxb3 {[%clk 0:00:15]}
45. g8=Q+ {[%clk 0:00:21.3]} 45... Kb4 {[%clk 0:00:14.9]} 46. Qa8 {[%clk
0:00:16.6]} 46... b5 {[%clk 0:00:12.2]} 47. Qxa6 {[%clk 0:00:16.8]} 47... Kc4
{[%clk 0:00:13.1]} 48. Ke4 {[%clk 0:00:16.8]} 1-0

[Event "Late-Titled-Tuesday-Blitz-December-26-2023"]
[Site "Chess.com"]
[Date "2023.12.26"]
[Round "11"]
[White "karinachess1"]
[Black "Grindaveci"]
[Result "1-0"]
[WhiteElo "2575"]
[BlackElo "2408"]
[TimeControl "180+1"]
[EndTime "16:03:29 PST"]
[Termination "karinachess1 won by resignation"]

1. d4 {[%clk 0:03:00.9]} 1... d5 {[%clk 0:02:58.3]} 2. c4 {[%clk 0:03:01]} 2...
e6 {[%clk 0:02:58.6]} 3. Nc3 {[%clk 0:03:00.8]} 3... c6 {[%clk 0:02:59]} 4. e3
{[%clk 0:02:55.5]} 4... Nf6 {[%clk 0:02:58.3]} 5. Nf3 {[%clk 0:02:50.5]} 5...
Nbd7 {[%clk 0:02:53.7]} 6. Bd3 {[%clk 0:02:50.3]} 6... dxc4 {[%clk 0:02:53.7]}
7. Bxc4 {[%clk 0:02:51.2]} 7... b5 {[%clk 0:02:54.3]} 8. Bd3 {[%clk 0:02:51.7]}
8... Bd6 {[%clk 0:02:54.4]} 9. O-O {[%clk 0:02:50.6]} 9... O-O {[%clk
0:02:53.6]} 10. h3 {[%clk 0:02:43.2]} 10... Bb7 {[%clk 0:02:52.9]} 11. e4 {[%clk
0:02:34.2]} 11... e5 {[%clk 0:02:52.6]} 12. dxe5 {[%clk 0:02:30.2]} 12... Nxe5
{[%clk 0:02:52.2]} 13. Nxe5 {[%clk 0:02:28.7]} 13... Bxe5 {[%clk 0:02:52]} 14.
f4 {[%clk 0:02:28.9]} 14... Bd4+ {[%clk 0:02:45.3]} 15. Kh2 {[%clk 0:02:25.4]}
15... b4 {[%clk 0:02:42.1]} 16. Na4 {[%clk 0:02:15.7]} 16... c5 {[%clk
0:02:39.7]} 17. e5 {[%clk 0:02:07.5]} 17... Nd5 {[%clk 0:02:33.9]} 18. Qe2
{[%clk 0:01:51.5]} 18... Qd7 {[%clk 0:02:17.7]} 19. Qc2 {[%clk 0:01:22.8]} 19...
g6 {[%clk 0:02:10.4]} 20. Nxc5 {[%clk 0:01:16.8]} 20... Bxc5 {[%clk 0:02:04.8]}
21. Qxc5 {[%clk 0:01:17.7]} 21... Nxf4 {[%clk 0:02:03.3]} 22. Bxf4 {[%clk
0:01:00.2]} 22... Qxd3 {[%clk 0:02:02.8]} 23. Qxb4 {[%clk 0:00:50.6]} 23... Rab8
{[%clk 0:01:55.7]} 24. Qd2 {[%clk 0:00:33.6]} 24... Rbd8 {[%clk 0:01:32.7]} 25.
Rad1 {[%clk 0:00:25.9]} 25... Qe4 {[%clk 0:01:28.3]} 26. Qf2 {[%clk 0:00:20.5]}
26... Rxd1 {[%clk 0:01:16]} 27. Rxd1 {[%clk 0:00:21.4]} 27... Rc8 {[%clk
0:01:15.7]} 28. Rd2 {[%clk 0:00:21.9]} 28... Rc4 {[%clk 0:01:07.3]} 29. Bg3
{[%clk 0:00:19.5]} 29... Rc8 {[%clk 0:01:00]} 30. Qf6 {[%clk 0:00:17.7]} 30...
a5 {[%clk 0:00:50.5]} 31. Rf2 {[%clk 0:00:17.9]} 31... Bd5 {[%clk 0:00:49.2]}
32. Qg5 {[%clk 0:00:13.2]} 32... Rc2 {[%clk 0:00:43]} 33. Rxc2 {[%clk
0:00:06.7]} 33... Qxc2 {[%clk 0:00:42.5]} 34. Qd8+ {[%clk 0:00:07]} 34... Kg7
{[%clk 0:00:43]} 35. Qxd5 {[%clk 0:00:07.2]} 35... Qxb2 {[%clk 0:00:43.6]} 36.
Qb3 {[%clk 0:00:07.5]} 36... Qd4 {[%clk 0:00:41.9]} 37. Qf3 {[%clk 0:00:07.1]}
37... Qd2 {[%clk 0:00:39.9]} 38. Qb3 {[%clk 0:00:07.1]} 38... Qd4 {[%clk
0:00:38.9]} 39. a4 {[%clk 0:00:07]} 39... Qe4 {[%clk 0:00:37.9]} 40. Qb5 {[%clk
0:00:07.2]} 40... Qa8 {[%clk 0:00:34.7]} 41. Be1 {[%clk 0:00:06.5]} 41... Qd8
{[%clk 0:00:31]} 42. Qxa5 {[%clk 0:00:06.6]} 42... Qg5 {[%clk 0:00:30.7]} 43.
Bg3 {[%clk 0:00:06.5]} 43... h5 {[%clk 0:00:30.2]} 44. Qb4 {[%clk 0:00:06.9]}
44... Qe3 {[%clk 0:00:28.8]} 45. Qf4 {[%clk 0:00:07.1]} 45... Qb6 {[%clk
0:00:27.3]} 46. Qf6+ {[%clk 0:00:06.9]} 46... Qxf6 {[%clk 0:00:27.2]} 47. exf6+
{[%clk 0:00:07.8]} 47... Kxf6 {[%clk 0:00:28]} 48. a5 {[%clk 0:00:08.7]} 1-0

[Event "Late-Titled-Tuesday-Blitz-December-26-2023"]
[Site "Chess.com"]
[Date "2023.12.26"]
[Round "11"]
[White "miraitrunks"]
[Black "morte-negra"]
[Result "0-1"]
[WhiteElo "2068"]
[BlackElo "2009"]
[TimeControl "180+1"]
[EndTime "16:03:31 PST"]
[Termination "morte-negra won by resignation"]

1. e4 {[%clk 0:02:59.5]} 1... c5 {[%clk 0:02:59.6]} 2. c3 {[%clk 0:02:58.7]}
2... g6 {[%clk 0:02:53.3]} 3. d4 {[%clk 0:02:58.4]} 3... cxd4 {[%clk 0:02:52.8]}
4. cxd4 {[%clk 0:02:59.3]} 4... d5 {[%clk 0:02:52.7]} 5. exd5 {[%clk 0:02:58.3]}
5... Nf6 {[%clk 0:02:51.1]} 6. Bb5+ {[%clk 0:02:57.8]} 6... Nbd7 {[%clk
0:02:49.6]} 7. Nc3 {[%clk 0:02:57.6]} 7... Bg7 {[%clk 0:02:47.6]} 8. Nf3 {[%clk
0:02:56.9]} 8... O-O {[%clk 0:02:47.4]} 9. O-O {[%clk 0:02:56.9]} 9... Nb6
{[%clk 0:02:46.8]} 10. Re1 {[%clk 0:02:51.3]} 10... Nbxd5 {[%clk 0:02:43.3]} 11.
Bc4 {[%clk 0:02:51]} 11... Nb6 {[%clk 0:02:38.2]} 12. Bb3 {[%clk 0:02:50.5]}
12... e6 {[%clk 0:02:37]} 13. Bf4 {[%clk 0:02:47.9]} 13... a6 {[%clk 0:02:25.4]}
14. Qd2 {[%clk 0:02:46.8]} 14... Re8 {[%clk 0:02:18.3]} 15. Bh6 {[%clk
0:02:45.6]} 15... Bh8 {[%clk 0:02:16.8]} 16. Ne5 {[%clk 0:02:45.1]} 16... Nfd5
{[%clk 0:02:05.8]} 17. Ne4 {[%clk 0:02:39]} 17... Bd7 {[%clk 0:01:17.8]} 18.
Rac1 {[%clk 0:02:28.3]} 18... Bb5 {[%clk 0:01:13.1]} 19. Nc5 {[%clk 0:02:18.8]}
19... Rb8 {[%clk 0:01:07.1]} 20. a4 {[%clk 0:01:59.6]} 20... Bc6 {[%clk
0:00:58.6]} 21. a5 {[%clk 0:01:50]} 21... Nd7 {[%clk 0:00:49.3]} 22. Nxc6 {[%clk
0:01:48]} 22... bxc6 {[%clk 0:00:49.4]} 23. Bxd5 {[%clk 0:01:48.2]} 23... cxd5
{[%clk 0:00:47.4]} 24. Nxa6 {[%clk 0:01:48.2]} 24... Rc8 {[%clk 0:00:40]} 25.
Nc5 {[%clk 0:01:47.3]} 25... Nxc5 {[%clk 0:00:35.7]} 26. dxc5 {[%clk 0:01:48.2]}
26... Qc7 {[%clk 0:00:34]} 27. b4 {[%clk 0:01:46.9]} 27... Rb8 {[%clk
0:00:32.3]} 28. a6 {[%clk 0:01:37.4]} 28... Qc6 {[%clk 0:00:31.9]} 29. Ra1
{[%clk 0:01:25.3]} 29... Ra8 {[%clk 0:00:31.8]} 30. Be3 {[%clk 0:01:06.1]} 30...
Rxa6 {[%clk 0:00:28.7]} 31. Rxa6 {[%clk 0:01:05.4]} 31... Qxa6 {[%clk
0:00:29.3]} 32. Bd4 {[%clk 0:01:04.8]} 32... e5 {[%clk 0:00:27.4]} 33. Bb2
{[%clk 0:01:04]} 33... d4 {[%clk 0:00:25.9]} 34. f4 {[%clk 0:01:00.3]} 34... Qc4
{[%clk 0:00:18.6]} 35. fxe5 {[%clk 0:00:58.4]} 35... Bxe5 {[%clk 0:00:17.8]} 36.
g3 {[%clk 0:00:57.5]} 36... f6 {[%clk 0:00:13.7]} 37. Kg2 {[%clk 0:00:56.9]}
37... d3 {[%clk 0:00:13.5]} 38. Bxe5 {[%clk 0:00:54.6]} 38... Rxe5 {[%clk
0:00:13.5]} 39. Rc1 {[%clk 0:00:47.6]} 39... Qd5+ {[%clk 0:00:12.9]} 40. Kh3
{[%clk 0:00:45.9]} 40... Re2 {[%clk 0:00:13.4]} 41. Qf4 {[%clk 0:00:38.2]} 41...
Qh5+ {[%clk 0:00:13]} 42. Qh4 {[%clk 0:00:38]} 42... Qf5+ {[%clk 0:00:13.2]} 43.
Qg4 {[%clk 0:00:37.8]} 43... Rxh2+ {[%clk 0:00:12.3]} 44. Kxh2 {[%clk 0:00:38]}
44... Qxg4 {[%clk 0:00:13.1]} 45. c6 {[%clk 0:00:38.3]} 45... Qe2+ {[%clk
0:00:12]} 46. Kh3 {[%clk 0:00:38.2]} 46... d2 {[%clk 0:00:12.5]} 47. Rc2 {[%clk
0:00:37.9]} 47... Qe6+ {[%clk 0:00:10.6]} 48. Kh2 {[%clk 0:00:37]} 48... d1=Q
{[%clk 0:00:10.7]} 49. c7 {[%clk 0:00:37.2]} 49... Qxc2+ {[%clk 0:00:10.7]} 0-1

[Event "Late-Titled-Tuesday-Blitz-December-26-2023"]
[Site "Chess.com"]
[Date "2023.12.26"]
[Round "11"]
[White "Grammnik"]
[Black "MasterofMasters2006"]
[Result "1-0"]
[WhiteElo "2234"]
[BlackElo "2101"]
[TimeControl "180+1"]
[EndTime "16:03:37 PST"]
[Termination "Grammnik won by checkmate"]

1. d4 {[%clk 0:03:00.9]} 1... Nf6 {[%clk 0:03:00.1]} 2. Nf3 {[%clk 0:03:00.1]}
2... d5 {[%clk 0:02:59.4]} 3. c4 {[%clk 0:03:00]} 3... e6 {[%clk 0:02:57.9]} 4.
Nc3 {[%clk 0:02:59.9]} 4... Be7 {[%clk 0:02:55.4]} 5. e3 {[%clk 0:02:59.5]} 5...
O-O {[%clk 0:02:55.2]} 6. Be2 {[%clk 0:02:59.2]} 6... b6 {[%clk 0:02:50.6]} 7.
O-O {[%clk 0:02:58.5]} 7... dxc4 {[%clk 0:02:45.5]} 8. Bxc4 {[%clk 0:02:57.7]}
8... Bb7 {[%clk 0:02:45.7]} 9. Qe2 {[%clk 0:02:56.4]} 9... Nbd7 {[%clk
0:02:45.4]} 10. Rd1 {[%clk 0:02:56.2]} 10... Rc8 {[%clk 0:02:44.8]} 11. Ba6
{[%clk 0:02:51.5]} 11... Rb8 {[%clk 0:02:27.8]} 12. Bxb7 {[%clk 0:02:49.4]}
12... Rxb7 {[%clk 0:02:28.7]} 13. Bd2 {[%clk 0:02:48.6]} 13... c5 {[%clk
0:02:26.4]} 14. e4 {[%clk 0:02:42]} 14... cxd4 {[%clk 0:02:25.3]} 15. Nxd4
{[%clk 0:02:41.9]} 15... Bc5 {[%clk 0:02:11.8]} 16. Nb3 {[%clk 0:02:38.6]} 16...
Qe7 {[%clk 0:02:09]} 17. Bg5 {[%clk 0:02:33.1]} 17... h6 {[%clk 0:02:08.5]} 18.
Bh4 {[%clk 0:02:29.2]} 18... Ne5 {[%clk 0:01:50.6]} 19. Bg3 {[%clk 0:02:23.7]}
19... Ng6 {[%clk 0:01:50.3]} 20. Nxc5 {[%clk 0:02:20.3]} 20... Qxc5 {[%clk
0:01:51.2]} 21. Bd6 {[%clk 0:02:19.8]} 21... Qc8 {[%clk 0:01:47.7]} 22. Bxf8
{[%clk 0:02:19.4]} 22... Qxf8 {[%clk 0:01:47.5]} 23. g3 {[%clk 0:02:14.6]} 23...
Qb4 {[%clk 0:01:20.4]} 24. Rd2 {[%clk 0:02:11.6]} 24... Ne5 {[%clk 0:01:09.9]}
25. Rad1 {[%clk 0:02:09.6]} 25... Kh7 {[%clk 0:01:06.7]} 26. h3 {[%clk
0:02:07.3]} 26... Rd7 {[%clk 0:00:52.4]} 27. Rxd7 {[%clk 0:02:03.1]} 27... Nexd7
{[%clk 0:00:31.5]} 28. e5 {[%clk 0:02:00.2]} 28... Nd5 {[%clk 0:00:31.2]} 29.
Nxd5 {[%clk 0:01:52.8]} 29... exd5 {[%clk 0:00:31.1]} 30. Rxd5 {[%clk
0:01:52.4]} 30... Nc5 {[%clk 0:00:29.9]} 31. Qc2+ {[%clk 0:01:41.5]} 31... g6
{[%clk 0:00:25.6]} 32. Qd2 {[%clk 0:01:39.2]} 32... Qe4 {[%clk 0:00:17.8]} 33.
b4 {[%clk 0:01:28.3]} 33... Ne6 {[%clk 0:00:17.6]} 34. Rd7 {[%clk 0:01:27.5]}
34... Kg7 {[%clk 0:00:17.7]} 35. Rxa7 {[%clk 0:01:25.2]} 35... Qxe5 {[%clk
0:00:13.4]} 36. a4 {[%clk 0:01:21.3]} 36... h5 {[%clk 0:00:09.6]} 37. Qe3 {[%clk
0:01:13.7]} 37... Qa1+ {[%clk 0:00:07.5]} 38. Kh2 {[%clk 0:01:12.8]} 38... Qb2
{[%clk 0:00:07]} 39. Qxb6 {[%clk 0:01:05.9]} 39... Ng5 {[%clk 0:00:04.5]} 40.
Rd7 {[%clk 0:00:58.5]} 40... Nf3+ {[%clk 0:00:03.3]} 41. Kg2 {[%clk 0:00:58.3]}
41... Ne1+ {[%clk 0:00:03.7]} 42. Kf1 {[%clk 0:00:57.7]} 42... Nf3 {[%clk
0:00:03.9]} 43. Qe3 {[%clk 0:00:54]} 43... Qb1+ {[%clk 0:00:03.6]} 44. Kg2
{[%clk 0:00:52.5]} 44... Ne1+ {[%clk 0:00:02.8]} 45. Kh2 {[%clk 0:00:52.2]}
45... Nc2 {[%clk 0:00:03.3]} 46. Qe5+ {[%clk 0:00:48.3]} 46... Kh6 {[%clk
0:00:03.9]} 47. Qh8+ {[%clk 0:00:42.3]} 47... Kg5 {[%clk 0:00:03.5]} 48. h4+
{[%clk 0:00:41.2]} 48... Kg4 {[%clk 0:00:03.2]} 49. Qf6 {[%clk 0:00:31.7]} 49...
Qe1 {[%clk 0:00:01.3]} 50. f3# {[%clk 0:00:27.8]} 1-0

[Event "Late-Titled-Tuesday-Blitz-December-26-2023"]
[Site "Chess.com"]
[Date "2023.12.26"]
[Round "11"]
[White "ATM622"]
[Black "GlavkonVVS"]
[Result "1-0"]
[WhiteElo "2441"]
[BlackElo "2510"]
[TimeControl "180+1"]
[EndTime "16:03:49 PST"]
[Termination "ATM622 won by resignation"]

1. d4 {[%clk 0:03:00.9]} 1... Nf6 {[%clk 0:02:59.8]} 2. c4 {[%clk 0:03:00.8]}
2... c5 {[%clk 0:03:00.3]} 3. d5 {[%clk 0:02:59.6]} 3... e6 {[%clk 0:03:00.8]}
4. g3 {[%clk 0:02:57.2]} 4... exd5 {[%clk 0:03:01.1]} 5. cxd5 {[%clk 0:02:58]}
5... d6 {[%clk 0:03:01.7]} 6. Bg2 {[%clk 0:02:58.4]} 6... g6 {[%clk 0:03:02.4]}
7. Nf3 {[%clk 0:02:58.8]} 7... Bg7 {[%clk 0:03:03.1]} 8. O-O {[%clk 0:02:59.4]}
8... O-O {[%clk 0:03:03.8]} 9. Nc3 {[%clk 0:02:59.7]} 9... a6 {[%clk 0:03:04.4]}
10. a4 {[%clk 0:02:59.1]} 10... Re8 {[%clk 0:03:05]} 11. Nd2 {[%clk 0:02:59]}
11... Nbd7 {[%clk 0:03:05.6]} 12. Nc4 {[%clk 0:02:59]} 12... Ne5 {[%clk
0:03:05.3]} 13. Nxe5 {[%clk 0:02:58.8]} 13... Rxe5 {[%clk 0:03:06.2]} 14. b3
{[%clk 0:02:56.8]} 14... Rb8 {[%clk 0:03:05.8]} 15. Bb2 {[%clk 0:02:53.8]} 15...
b5 {[%clk 0:03:05]} 16. axb5 {[%clk 0:02:48.7]} 16... axb5 {[%clk 0:03:05.2]}
17. Ra7 {[%clk 0:02:30.4]} 17... Qb6 {[%clk 0:02:48.8]} 18. Qa1 {[%clk
0:02:27.7]} 18... Bb7 {[%clk 0:02:39.3]} 19. Nxb5 {[%clk 0:01:42.8]} 19... Qxb5
{[%clk 0:02:37.1]} 20. Bxe5 {[%clk 0:01:42.1]} 20... dxe5 {[%clk 0:02:36.3]} 21.
Qxe5 {[%clk 0:01:41.8]} 21... Nd7 {[%clk 0:02:32.7]} 22. Qc7 {[%clk 0:01:35.8]}
22... Be5 {[%clk 0:02:10.2]} 23. d6 {[%clk 0:01:34.6]} 23... Bxg2 {[%clk
0:02:10.1]} 24. Kxg2 {[%clk 0:01:32.1]} 24... Nf8 {[%clk 0:01:40.2]} 25. Qxf7+
{[%clk 0:01:30.4]} 25... Kh8 {[%clk 0:01:40.6]} 26. f4 {[%clk 0:01:10.9]} 26...
Qxe2+ {[%clk 0:01:39.2]} 27. Rf2 {[%clk 0:01:07.7]} 27... Qe4+ {[%clk
0:01:39.2]} 28. Kh3 {[%clk 0:01:01.1]} 28... Bd4 {[%clk 0:01:37.3]} 29. Rd2
{[%clk 0:00:45.4]} 29... Qe6+ {[%clk 0:01:12.9]} 30. Qxe6 {[%clk 0:00:43.5]}
30... Nxe6 {[%clk 0:01:13.4]} 31. Re2 {[%clk 0:00:43.2]} 31... Nf8 {[%clk
0:01:08]} 32. d7 {[%clk 0:00:33.5]} 32... Rd8 {[%clk 0:00:51.4]} 33. Re8 {[%clk
0:00:31]} 33... Bf6 {[%clk 0:00:51.6]} 34. Ra6 {[%clk 0:00:20.3]} 34... Kg7
{[%clk 0:00:26.3]} 35. Rxf6 {[%clk 0:00:19.9]} 35... Nxd7 {[%clk 0:00:24]} 36.
Rxd8 {[%clk 0:00:18.6]} 36... Nxf6 {[%clk 0:00:24.2]} 37. g4 {[%clk 0:00:16.3]}
37... h5 {[%clk 0:00:21]} 38. g5 {[%clk 0:00:14.9]} 38... Ne4 {[%clk 0:00:21.4]}
39. Rd7+ {[%clk 0:00:15]} 39... Kf8 {[%clk 0:00:21.3]} 40. Kg2 {[%clk
0:00:14.4]} 40... Ke8 {[%clk 0:00:20.8]} 41. Rd5 {[%clk 0:00:11.6]} 41... Kf7
{[%clk 0:00:19.3]} 42. Re5 {[%clk 0:00:11.1]} 42... Nd2 {[%clk 0:00:18.8]} 43.
Rxc5 {[%clk 0:00:08.8]} 43... Nxb3 {[%clk 0:00:18.8]} 44. Rc6 {[%clk 0:00:07.6]}
44... Nd4 {[%clk 0:00:18.6]} 45. Rf6+ {[%clk 0:00:07.5]} 45... Kg7 {[%clk
0:00:19.1]} 46. Kf2 {[%clk 0:00:07.6]} 46... Nb3 {[%clk 0:00:17.2]} 47. Rd6
{[%clk 0:00:06.8]} 47... Nc5 {[%clk 0:00:17.3]} 48. Rc6 {[%clk 0:00:06.9]} 48...
Ne4+ {[%clk 0:00:17.5]} 49. Ke3 {[%clk 0:00:07.1]} 1-0